bitfinex/quotes_ETHUSD_20230116
["timestamp","ask_amount","ask_price","bid_price","bid_amount"]
[1673828355030,12.87936,1552.9,1552.5,0.09377056]
[1673828355242,12.87936,1552.9,1552.5,0.08080971]
[1673828357048,19.32117,1552.7,1552.5,0.08080971]
[1673828357365,25.76156,1552.7,1552.5,0.08080971]
[1673828357795,28.386036,1552.7,1552.5,0.08080971]
[1673828358354,28.869336,1552.7,1552.5,0.08080971]
[1673828358821,28.386036,1552.7,1552.5,0.08080971]
[1673828361077,14.3816,1552.6,1552.5,0.08080971]
[1673828361568,16.3459,1552.6,1552.5,9.71e-06]
[1673828361779,1.5,1552.5,1552.0,0.1246868]
[1673828361991,25.99736,1552.4,1552.0,0.1246868]
[1673828362346,26.48066,1552.4,1552.0,0.1246868]
[1673828362656,25.76984,1552.2,1552.0,0.1246868]
[1673828362814,1.9834,1552.1,1552.0,0.1246868]
[1673828363023,13.36916,1552.1,1552.0,0.1246868]
[1673828365392,6.44288,1552.1,1552.0,0.8726868]
[1673828365543,6.92586,1552.2,1552.0,2.58885548]
[1673828365544,6.44246,1552.2,1552.0,2.58885548]
[1673828365755,12.88517,1552.2,1552.0,2.59961718]
[1673828366220,12.88517,1552.2,1552.0,0.1354485]
[1673828366647,12.88517,1552.2,1552.0,2.3574485]
[1673828366865,12.88517,1552.2,1552.1,1.481]
[1673828367019,12.88517,1552.2,1552.0,0.1354485]
[1673828367751,19.81128,1552.2,1552.0,0.1354485]
[1673828368007,1.981128,1552.1,1552.0,0.1354485]
[1673828368221,14.866888,1552.1,1552.0,0.1354485]
[1673828368849,15.350288,1552.1,1552.0,0.1354485]
[1673828369430,20.056288,1552.1,1552.0,0.1354485]
[1673828370320,18.350288,1552.1,1552.0,0.1354485]
[1673828370496,16.36916,1552.1,1552.0,0.1354485]
[1673828373592,16.36916,1552.1,1551.8,0.75981486]
[1673828375422,6.44246,1552.2,1551.9,1.481]
[1673828375678,6.44227,1552.3,1552.1,1.481]
[1673828376000,12.88454,1552.3,1551.9,1.481]
[1673828376219,0.644227,1552.2,1551.9,1.481]
[1673828376530,6.44288,1552.1,1551.9,1.481]
[1673828376680,12.88576,1552.1,1551.9,1.481]
[1673828376885,12.88576,1552.1,1551.8,1.478]
[1673828377161,14.8830167,1552.1,1551.8,1.478]
[1673828377375,14.8830167,1552.1,1551.7,1.62836636]
[1673828379376,12.88576,1552.1,1551.7,1.62836636]
[1673828379562,12.88576,1552.1,1551.7,1.02836636]
[1673828379757,12.88576,1552.1,1551.7,1.481]
[1673828379966,12.88576,1552.1,1551.6,0.04400962]
[1673828380178,20.80737,1551.9,1551.6,0.04400962]
[1673828380388,12.88908,1551.7,1551.6,0.04400962]
[1673828382718,13.37268,1551.7,1551.6,0.04400962]
[1673828382935,18.49701918,1551.7,1551.6,0.04400962]
[1673828384517,18.49701918,1551.7,1551.5,1.21825479]
[1673828384518,2.981,1551.6,1551.3,0.11900212]
[1673828384833,30.73308,1551.5,1551.3,0.11900212]
[1673828384994,15.72833671,1551.4,1551.3,0.11900212]
[1673828385467,19.21203671,1551.4,1551.3,0.11900212]
[1673828386148,13.37528,1551.4,1551.3,0.11900212]
[1673828386674,12.89158,1551.4,1551.3,0.11900212]
[1673828386884,13.37528,1551.4,1551.3,0.11900212]
[1673828387719,16.37528,1551.4,1551.3,0.11900212]
[1673828388983,26.42206678,1551.4,1551.3,0.11900212]
[1673828389212,8.274,1551.2,1550.9,0.0065613]
[1673828389529,22.6419,1551.0,1550.9,0.0065613]
[1673828389726,30.87948678,1551.0,1550.8,0.17225434]
[1673828389931,23.42630678,1550.9,1550.8,0.17225434]
[1673828390200,31.62430678,1550.9,1550.5,0.17225434]
[1673828390358,1.467,1550.7,1550.5,0.17225434]
[1673828390566,21.31223,1550.6,1550.5,0.17225434]
[1673828391045,19.83123,1550.6,1550.5,0.17225434]
[1673828391347,28.73135596,1550.6,1549.9,1.0995634]
[1673828391557,27.2709,1550.4,1549.9,1.0995634]
[1673828391748,4.67909,1550.3,1550.0,1.59991316]
[1673828391963,22.35234,1550.2,1549.9,1.0995634]
[1673828392278,3.27278678,1550.1,1549.9,1.0995634]
[1673828392493,3.27278678,1550.1,1549.7,0.59044]
[1673828392494,34.36371678,1550.0,1549.7,0.59044]
[1673828392820,19.35732,1549.8,1549.7,0.09044]
[1673828392977,6.93664,1549.8,1549.7,0.09044]
[1673828393190,6.45161,1550.0,1549.8,2.56089352]
[1673828393404,6.45161,1550.0,1549.8,2.82602687]
[1673828393721,6.45161,1550.0,1549.8,2.56089352]
[1673828394803,6.93464,1550.3,1549.9,1.481]
[1673828394972,6.45064,1550.3,1550.0,1.481]
[1673828395187,12.90128,1550.3,1549.8,2.56089352]
[1673828395392,6.45127,1550.1,1549.8,2.51089352]
[1673828395670,12.90254,1550.1,1549.8,2.51089352]
[1673828396023,6.4511,1550.2,1549.9,1.478]
[1673828396385,6.45063,1550.3,1550.0,1.481]
[1673828396814,6.774,1550.1,1549.8,2.51089352]
[1673828396974,12.90404,1549.9,1549.8,2.51089352]
[1673828397387,6.774,1549.7,1548.8,0.018008]
[1673828397609,17.03098678,1549.6,1548.8,0.018008]
[1673828397853,32.59108,1549.4,1548.8,0.018008]
[1673828398071,12.90988,1549.2,1549.0,0.20132646]
[1673828398281,6.45494,1549.2,1549.0,0.20132646]
[1673828398594,12.90988,1549.2,1549.0,0.20132646]
[1673828399522,16.82900596,1549.2,1549.0,0.20132646]
[1673828399753,15.0780206,1549.1,1549.0,0.20132646]
[1673828400569,18.35080738,1549.1,1549.0,0.20132646]
[1673828400772,19.5590206,1549.1,1549.0,0.20132646]
[1673828401627,8.6226606,1549.1,1549.0,0.20132646]
[1673828401874,6.93976,1549.1,1549.0,0.20132646]
[1673828402820,0.4844,1549.1,1549.0,0.20132646]
[1673828403715,3.0,1549.3,1549.0,1.68232646]
[1673828403716,6.45458,1549.3,1549.0,1.68232646]
[1673828403920,6.4545,1549.4,1549.0,1.68232646]
[1673828404183,6.4545,1549.4,1549.0,2.49617611]
[1673828404373,6.45398,1549.5,1549.1,1.47]
[1673828404714,0.4842,1549.7,1549.2,1.5]
[1673828404885,6.93701,1549.8,1549.4,1.474]
[1673828405762,0.4842,1549.8,1549.4,1.474]
[1673828405920,7.63051,1549.8,1549.3,1.477]
[1673828406448,6.93686,1549.8,1549.3,1.477]
[1673828407024,6.4517,1550.0,1549.5,1.481]
[1673828407181,16.66290948,1550.1,1549.6,1.479]
[1673828407400,6.66290948,1550.1,1549.6,9.4322]
[1673828407619,7.14700948,1550.1,1549.6,9.4322]
[1673828407970,7.14700948,1550.1,1549.6,11.814211]
[1673828408179,7.14700948,1550.1,1549.7,1.697]
[1673828408180,0.21142948,1550.1,1549.7,1.697]
[1673828408338,0.21142948,1550.1,1549.7,9.64979]
[1673828408814,0.21142948,1550.1,1549.9,1.481]
[1673828409016,0.21142948,1550.1,1550.0,1.474]
[1673828409338,0.21142948,1550.1,1550.0,1.6214]
[1673828409643,0.21142948,1550.1,1549.6,10.9984284]
[1673828409644,0.21142948,1550.1,1549.6,8.8464284]
[1673828409862,6.66261948,1550.1,1549.6,1.4892774]
[1673828410013,13.11380948,1550.1,1549.6,1.4892774]
[1673828410225,0.21142948,1550.1,1549.6,0.0112774]
[1673828410593,0.21142948,1550.1,1550.0,1.481]
[1673828410909,0.21142948,1550.1,1550.0,7.93261]
[1673828412163,0.21142948,1550.1,1550.0,16.4791284]
[1673828412596,0.484,1550.4,1550.1,0.17915538]
[1673828412745,6.93344,1550.5,1550.1,3.14915538]
[1673828413223,6.93344,1550.5,1550.1,1.64915538]
[1673828413390,13.38298,1550.5,1550.1,0.17915538]
[1673828413601,1.338298,1550.4,1550.1,0.17915538]
[1673828413835,12.90072,1550.3,1550.1,0.17915538]
[1673828414005,17.238698,1550.4,1550.1,0.17915538]
[1673828414218,17.238698,1550.4,1550.1,0.19043278]
[1673828415203,6.93443,1550.3,1550.1,0.19043278]
[1673828416418,2.9013128,1550.3,1550.1,0.19043278]
[1673828416631,6.44947,1550.6,1550.1,1.66443278]
[1673828416888,6.44947,1550.6,1550.1,8.11553278]
[1673828417073,6.44947,1550.6,1550.2,1.481]
[1673828417428,6.45003,1550.4,1550.1,0.19043278]
[1673828417593,6.45078,1550.2,1550.1,0.19043278]
[1673828417999,7.095623,1550.3,1550.1,0.19043278]
[1673828418209,6.45003,1550.4,1550.1,0.19043278]
[1673828418707,6.93381,1550.5,1550.1,1.66743278]
[1673828420466,19.83307,1550.5,1550.1,0.19043278]
[1673828421698,12.90072,1550.3,1550.1,0.19043278]
[1673828421912,8.224852,1550.2,1550.1,0.19043278]
[1673828422138,7.740852,1550.2,1550.1,0.19043278]
[1673828422376,14.191632,1550.2,1550.1,0.19043278]
[1673828422597,6.774,1550.1,1549.2,0.20132646]
[1673828422824,26.08183,1549.8,1549.2,0.20132646]
[1673828422977,12.90685,1549.6,1549.2,0.20132646]
[1673828423435,14.37485,1549.6,1549.2,0.20132646]
[1673828423649,19.36233,1549.4,1549.2,0.20132646]
[1673828423814,16.808573,1549.3,1549.2,0.20132646]
[1673828424868,26.85535978,1549.3,1549.2,0.20132646]
[1673828425078,1.5,1549.2,1549.0,0.20132646]
[1673828425338,21.31848,1549.1,1549.0,0.20132646]
[1673828425524,20.49681918,1549.1,1549.0,0.20132646]
[1673828425713,24.41307169,1549.1,1549.0,0.20132646]
[1673828425923,1.5,1549.0,1548.8,0.20132646]
[1673828426137,18.04678678,1549.0,1548.8,0.20132646]
[1673828426389,26.62697,1548.9,1548.4,1.0995634]
[1673828426615,19.37232,1548.6,1548.4,1.0995634]
[1673828426757,14.690392,1548.5,1548.4,1.0995634]
[1673828427227,17.96317878,1548.5,1548.2,0.20132646]
[1673828427448,19.37709,1548.3,1547.8,0.3]
[1673828427652,1.14175533,1547.9,1547.8,0.3]
[1673828427865,8.274,1547.8,1547.2,0.95901317]
[1673828428036,8.274,1547.8,1546.9,23.68436814]
[1673828428037,6.46207,1547.5,1546.9,20.66369683]
[1673828428247,3.27278678,1547.4,1547.0,1.60300858]
[1673828428477,20.88554937,1547.2,1546.8,0.7134941]
[1673828428650,3.27278678,1546.9,1546.6,0.04526008]
[1673828428858,41.35732,1547.0,1546.6,0.04526008]
[1673828428859,0.4851,1546.8,1546.6,0.04526008]
[1673828429108,0.4851,1546.9,1546.6,0.04526008]
[1673828429281,6.94868,1547.2,1546.6,0.04526008]
[1673828429494,6.94868,1547.2,1546.7,0.725]
[1673828429742,0.694868,1547.1,1546.6,0.04526008]
[1673828430081,10.158738,1547.1,1546.6,1.54526008]
[1673828430287,7.158738,1547.1,1546.4,0.62026008]
[1673828430497,0.485,1547.2,1546.5,0.00440132]
[1673828430832,6.46092,1547.8,1547.0,6.46405]
[1673828430968,12.92184,1547.8,1547.1,1.331]
[1673828431351,6.46053,1547.9,1547.2,1.50439932]
[1673828431643,0.4848,1547.9,1547.6,1.325]
[1673828431797,0.4847,1548.0,1547.6,1.325]
[1673828432011,1.5,1547.9,1547.1,1.331]
[1673828432225,12.9233,1547.6,1546.8,5.009]
[1673828432431,3.9849,1547.5,1546.5,7.79713]
[1673828432748,6.94708,1547.5,1546.7,1.322]
[1673828433011,0.4849,1547.5,1546.9,1.5]
[1673828433180,0.4849,1547.5,1547.1,1.32]
[1673828433397,0.33132939,1547.4,1547.1,7.78358]
[1673828433729,0.33132939,1547.4,1547.1,7.73249]
[1673828434126,0.33132939,1547.4,1547.3,1.331]
[1673828434337,0.33132939,1547.4,1547.3,7.79387]
[1673828434570,0.33132939,1547.4,1547.3,1.331]
[1673828435122,0.0131329,1547.8,1547.4,0.17395861]
[1673828435267,0.0131329,1547.8,1547.4,1.50917427]
[1673828435999,6.45837,1548.4,1547.4,14.78296345]
[1673828436268,6.45739,1548.7,1547.6,3.0]
[1673828436483,6.45644,1548.9,1547.6,3.0]
[1673828436484,6.45663,1548.8,1548.0,12.9198]
[1673828436631,0.4845,1548.7,1548.1,0.00421376]
[1673828436846,0.4845,1548.8,1548.1,6.46359376]
[1673828437212,14.091834,1548.8,1548.2,1.323]
[1673828437459,1.327,1548.6,1547.8,6.46037]
[1673828437618,7.78476,1548.6,1547.8,6.46037]
[1673828437792,6.94226,1548.6,1547.8,6.46037]
[1673828438000,0.4845,1548.6,1547.9,1.5]
[1673828438213,0.4845,1548.7,1548.1,6.45948]
[1673828438526,0.4845,1548.7,1546.4,2.40024454]
[1673828438527,6.774,1547.4,1546.4,2.40024454]
[1673828438736,6.774,1547.4,1546.3,0.23805602]
[1673828438737,0.82234487,1547.3,1546.3,0.23805602]
[1673828438999,14.0,1547.0,1546.3,0.23805602]
[1673828439168,6.4137,1547.1,1546.3,0.23805602]
[1673828439169,33.395,1546.8,1546.3,0.23805602]
[1673828439510,0.4851,1546.7,1546.3,0.23805602]
[1673828439724,7.59616918,1546.9,1546.3,0.23805602]
[1673828439965,0.4851,1546.9,1546.4,1.5]
[1673828440116,6.46385,1547.1,1546.5,0.15]
[1673828440521,0.485,1547.2,1546.5,0.15]
[1673828440734,1.10035982,1547.3,1546.7,1.322]
[1673828440995,13.54129982,1547.3,1546.5,0.15]
[1673828441166,0.485,1547.2,1546.5,0.15]
[1673828441375,6.46404,1547.1,1546.5,0.15]
[1673828441589,0.485,1547.0,1546.5,0.15]
[1673828441802,7.79423,1547.0,1546.3,6.70484602]
[1673828442147,7.79423,1547.0,1546.3,0.23805602]
[1673828442148,12.92846,1547.0,1546.3,0.23805602]
[1673828442305,19.39674,1546.7,1546.3,0.23805602]
[1673828442519,0.4852,1546.6,1546.3,0.23805602]
[1673828442788,12.93242,1546.5,1546.3,0.23805602]
[1673828442936,6.46621,1546.5,1546.3,0.23805602]
[1673828443150,5.92278678,1546.4,1546.3,0.18805602]
[1673828443468,19.57124678,1546.4,1546.0,0.19940419]
[1673828443670,20.73464,1546.1,1546.0,0.19940419]
[1673828443880,21.21994,1546.1,1546.0,0.19940419]
[1673828444135,22.77033884,1546.1,1546.0,0.19940419]
[1673828444405,0.199,1546.0,1545.2,1.0995634]
[1673828444663,0.199,1546.0,1545.0,0.4817934]
[1673828444664,1.5,1545.4,1545.0,0.4817934]
[1673828444879,13.42822,1545.3,1545.0,0.4817934]
[1673828445041,3.25851704,1545.9,1545.1,1.35]
[1673828445042,6.47004,1545.6,1545.1,1.35]
[1673828445403,6.47004,1545.6,1545.2,0.135]
[1673828446002,6.4698,1545.7,1545.2,1.457]
[1673828446352,10.0,1546.1,1545.2,1.457]
[1673828446353,6.46649,1546.5,1545.5,6.47013]
[1673828446566,6.46688,1546.4,1545.6,7.79874]
[1673828446719,6.46688,1546.4,1545.7,0.779874]
[1673828446931,13.41896,1546.4,1545.7,0.779874]
[1673828447192,1.327,1546.2,1545.3,1.332]
[1673828447379,19.40577,1546.0,1545.2,0.135]
[1673828447569,1.8164,1545.9,1545.2,0.135]
[1673828447780,12.9392,1545.7,1545.0,0.4817934]
[1673828447990,13.4246,1545.7,1545.1,0.01259204]
[1673828448231,1.323,1545.6,1545.1,0.01259204]
[1673828448412,19.41174,1545.5,1545.1,0.01259204]
[1673828448828,1.331,1545.4,1545.1,0.01259204]
[1673828448978,8.28204,1545.5,1545.1,0.01259204]
[1673828449189,1.8115,1545.5,1545.1,0.01259204]
[1673828449594,14.26685,1545.5,1545.1,0.01259204]
[1673828450158,1.326,1545.5,1545.1,0.01259204]
[1673828450308,6.95559,1545.6,1545.1,0.01259204]
[1673828450517,0.4855,1545.6,1545.2,2.89402244]
[1673828450726,0.4854,1545.8,1545.3,3.19182781]
[1673828450993,8.28159,1545.8,1545.3,3.19182781]
[1673828451311,1.331,1545.7,1545.3,0.01259041]
[1673828451624,13.37562,1545.6,1545.3,0.01259041]
[1673828451776,6.90556,1545.6,1545.3,0.01259041]
[1673828451986,0.4355,1545.6,1545.3,2.89823856]
[1673828452408,0.4854,1545.7,1545.3,2.89823856]
[1673828452704,0.4854,1545.7,1545.3,3.83522042]
[1673828453162,0.4854,1545.7,1545.3,2.89823856]
[1673828453373,7.78917,1546.1,1545.4,2.88146141]
[1673828453625,7.78917,1546.1,1545.5,2.86053178]
[1673828453626,6.46817,1546.1,1545.5,2.86053178]
[1673828453845,6.46817,1546.1,1545.7,1.5]
[1673828454054,0.4853,1546.2,1545.7,1.5]
[1673828454222,0.4853,1546.3,1545.8,6.61911]
[1673828454423,0.4852,1546.4,1545.9,2.83542514]
[1673828454870,0.4852,1546.4,1546.0,2.82705844]
[1673828455055,0.4852,1546.5,1546.0,2.82705844]
[1673828455276,0.4852,1546.5,1546.1,2.8186928]
[1673828455508,0.01985388,1546.5,1546.1,2.81451039]
[1673828455719,9.75920066,1546.5,1545.6,6.46983]
[1673828456002,6.9521,1546.4,1545.7,9.30490514]
[1673828456251,0.4852,1546.4,1545.9,2.83542514]
[1673828456441,0.01985388,1546.5,1546.0,16.04678095]
[1673828456838,0.01985388,1546.5,1546.0,9.57869095]
[1673828457639,0.01985388,1546.5,1546.1,2.8186928]
[1673828457787,6.48608388,1546.5,1546.1,2.8186928]
[1673828457999,6.97128388,1546.5,1546.1,2.8186928]
[1673828458254,0.50505388,1546.5,1546.1,2.8186928]
[1673828458414,0.50505388,1546.5,1546.2,2.81451039]
[1673828458630,0.01985388,1546.5,1546.3,2.81032826]
[1673828459206,0.01985388,1546.5,1546.4,2.80614639]
[1673828459431,0.01985388,1546.5,1546.2,6.46745]
[1673828459729,6.46663,1546.4,1545.6,6.46967]
[1673828459954,3.9853,1546.3,1545.7,2.83542514]
[1673828460132,0.4853,1546.3,1545.8,2.83960891]
[1673828460346,1.8163,1546.3,1545.9,2.83542514]
[1673828460889,0.4853,1546.3,1545.9,2.83542514]
[1673828461106,0.4853,1546.3,1545.9,4.41279365]
[1673828461414,0.4853,1546.3,1546.0,2.83124165]
[1673828461565,1.35085388,1546.5,1546.1,2.82705844]
[1673828461566,0.4852,1546.4,1546.1,2.82705844]
[1673828461782,0.50505388,1546.5,1546.2,2.8186928]
[1673828461993,0.01985388,1546.5,1546.2,2.8186928]
[1673828462236,0.01985388,1546.5,1546.0,6.46806]
[1673828462407,7.81712388,1546.5,1546.0,2.8186928]
[1673828462613,7.81712388,1546.5,1545.8,6.46893]
[1673828462614,1.324,1546.3,1545.8,6.46893]
[1673828462830,1.324,1546.3,1545.8,2.83542514]
[1673828463034,17.7583,1546.3,1545.5,6.47007]
[1673828463294,1.331,1546.0,1545.3,6.47106]
[1673828463520,0.4854,1545.9,1545.4,2.86890281]
[1673828463671,0.4854,1545.9,1545.4,4.36890281]
[1673828463882,0.4854,1545.9,1545.5,2.86890281]
[1673828464091,0.4853,1546.0,1545.5,9.33922281]
[1673828464343,0.4853,1546.1,1545.6,2.86053178]
[1673828464570,0.4853,1546.1,1545.7,3.13821499]
[1673828464571,0.90405966,1546.1,1545.7,3.13821499]
[1673828464756,6.46682,1546.4,1545.8,2.84797725]
[1673828464757,0.4853,1546.3,1545.8,2.84797725]
[1673828464966,0.4853,1546.3,1545.9,2.83542514]
[1673828465141,0.4853,1546.3,1545.9,9.30413514]
[1673828465356,0.4852,1546.4,1546.0,1.5]
[1673828465819,0.4852,1546.4,1546.0,2.82287549]
[1673828466348,0.4852,1546.4,1546.0,9.29111549]
[1673828466748,0.50505388,1546.5,1546.0,9.29111549]
[1673828466967,3.77784066,1546.5,1545.4,2.01]
[1673828467134,3.77784066,1546.5,1545.7,12.9387]
[1673828467135,3.5,1546.4,1545.7,12.9387]
[1673828467350,0.4853,1546.3,1545.8,2.83542514]
[1673828467716,14.91954,1546.3,1545.6,6.46991]
[1673828467917,16.91954,1546.3,1545.7,2.84379294]
[1673828468082,3.0,1546.2,1545.7,2.84379294]
[1673828468291,0.4853,1546.1,1545.7,2.84379294]
[1673828469566,0.4853,1546.1,1545.7,9.31333294]
[1673828470026,3.9853,1546.1,1545.7,2.84379294]
[1673828470235,3.23,1546.0,1545.7,2.84379294]
[1673828470395,0.4854,1545.9,1545.2,12.8966]
[1673828470757,0.4854,1545.9,1545.3,9.34849495]
[1673828470758,13.42284,1545.9,1545.3,9.34849495]
[1673828470968,0.4854,1545.9,1545.4,2.87308874]
[1673828471126,0.4854,1545.9,1545.5,9.33911281]
[1673828471586,0.4854,1545.9,1545.6,4.36471717]
[1673828471793,0.4853,1546.0,1545.7,2.86053178]
[1673828472207,8.7311,1546.4,1545.8,2.85216181]
[1673828472461,8.7311,1546.4,1545.9,9.29995165]
[1673828472861,0.4853,1546.3,1545.9,9.29995165]
[1673828473074,0.4853,1546.3,1545.9,15.76867165]
[1673828473313,0.4852,1546.4,1545.9,15.76867165]
[1673828473728,0.4852,1546.4,1546.0,2.82705844]
[1673828473900,0.4852,1546.4,1546.0,15.76320844]
[1673828474513,0.017323,1546.4,1546.1,2.82287549]
[1673828474728,0.017323,1546.4,1546.2,10.78374164]
[1673828474984,0.017323,1546.4,1546.2,15.7536128]
[1673828475239,0.017323,1546.4,1546.3,2.81451039]
[1673828475832,0.017323,1546.4,1546.3,15.74861039]
[1673828476043,0.017323,1546.4,1545.9,6.46871]
[1673828476256,0.017323,1546.4,1546.0,2.82705844]
[1673828476573,10.06410978,1546.4,1545.4,0.64633918]
[1673828476727,10.06410978,1546.4,1545.1,1.9781445]
[1673828476728,2.56803115,1545.8,1545.1,4.44147278]
[1673828476939,0.4854,1545.7,1545.1,11.7978667]
[1673828477355,0.4854,1545.7,1545.1,1.22658541]
[1673828477356,0.64633918,1545.6,1545.1,1.22658541]
[1673828477571,0.4855,1545.5,1545.1,1.22658541]
[1673828477990,10.04678678,1545.4,1545.1,1.22658541]
[1673828478362,4.13193918,1545.3,1545.1,1.22658541]
[1673828478575,9.95692,1545.3,1545.1,1.22658541]
[1673828478723,16.42824,1545.3,1545.1,1.22658541]
[1673828478926,17.07457918,1545.3,1545.1,1.22658541]
[1673828479141,0.26369407,1545.2,1545.1,0.26325713]
[1673828479392,0.26369407,1545.2,1544.8,2.24811263]
[1673828479393,8.274,1545.1,1544.8,2.24811263]
[1673828479606,3.4857,1545.0,1544.8,2.24811263]
[1673828479779,10.91003325,1545.2,1544.8,2.47292389]
[1673828479780,16.73562407,1545.2,1544.8,2.47292389]
[1673828479994,0.64633918,1544.9,1544.6,1.86555947]
[1673828480220,14.0,1544.7,1544.6,1.86555947]
[1673828480435,3.4858,1544.7,1544.6,1.86555947]
[1673828480743,22.90702,1544.7,1544.6,0.61555947]
[1673828481090,22.85702,1544.7,1544.6,0.61555947]
[1673828481452,27.60485562,1544.7,1544.6,0.61555947]
[1673828481661,24.33206884,1544.7,1544.6,0.61555947]
[1673828481903,4.12617328,1544.7,1544.6,0.61555947]
[1673828482120,3.4358,1544.7,1544.6,0.61555947]
[1673828482545,16.38328,1544.7,1544.6,0.61555947]
[1673828483252,9.90954,1544.7,1544.6,0.61555947]
[1673828483464,19.65606678,1544.7,1544.6,0.61555947]
[1673828483686,26.43006678,1544.7,1544.6,0.61555947]
[1673828484044,0.615,1544.6,1543.7,1.0995634]
[1673828484232,7.66081918,1544.4,1543.7,1.0995634]
[1673828484447,17.03268678,1544.3,1543.7,1.0995634]
[1673828484659,10.04678678,1544.1,1543.7,0.13537756]
[1673828484873,29.39304,1544.0,1543.7,0.13537756]
[1673828485182,29.39304,1544.0,1543.4,0.84682333]
[1673828485183,22.91628,1544.0,1543.4,0.84682333]
[1673828485554,1.5,1543.9,1543.4,0.84682333]
[1673828485883,29.66970678,1543.8,1543.4,0.84682333]
[1673828486238,36.44370678,1543.8,1543.4,0.84682333]
[1673828486392,19.91919,1543.8,1543.4,0.84682333]
[1673828486597,19.91919,1543.8,1543.2,0.007]
[1673828486598,6.96373,1543.8,1543.2,0.007]
[1673828486817,0.486,1543.8,1543.2,6.487]
[1673828487144,6.96322,1543.9,1543.3,0.6487]
[1673828487370,0.486,1543.9,1543.3,0.6487]
[1673828487561,0.486,1543.9,1543.4,1.5]
[1673828487775,0.486,1544.0,1543.5,12.95735]
[1673828488130,0.486,1544.0,1543.5,6.47857]
[1673828488285,0.486,1544.0,1543.6,3.0281587]
[1673828488498,0.486,1544.0,1543.2,8.34864]
[1673828488499,32.27278678,1543.7,1542.6,0.00402685]
[1673828488707,32.27278678,1543.7,1542.5,0.0193908]
[1673828488708,14.0,1542.7,1542.5,0.01571618]
[1673828488911,0.4864,1542.6,1542.4,0.00031631]
[1673828489260,5.3994,1542.9,1542.4,0.00031631]
[1673828489261,6.48247,1542.7,1542.4,0.00031631]
[1673828489481,6.48247,1542.7,1542.1,1.0995634]
[1673828489482,2.342,1542.5,1542.1,1.0995634]
[1673828489649,5.25928678,1542.4,1542.1,0.8995634]
[1673828490015,12.96764,1542.3,1542.1,0.8995634]
[1673828490390,0.99950161,1542.3,1542.1,0.8995634]
[1673828490558,1.60915586,1542.6,1542.1,0.99021974]
[1673828491088,1.01471017,1543.0,1542.2,1.5]
[1673828491244,2.34791281,1543.3,1542.2,3.854]
[1673828491570,2.34791281,1543.3,1542.5,1.5]
[1673828491779,0.67746098,1543.5,1542.7,1.5]
[1673828492199,3.21739382,1543.9,1542.7,1.5]
[1673828492532,3.21739382,1543.9,1543.0,2.354]
[1673828493073,3.21739382,1543.9,1543.1,3.23]
[1673828493394,3.21739382,1543.9,1543.3,3.0]
[1673828493716,3.21407322,1544.3,1543.5,1.5]
[1673828493882,0.4859,1544.2,1543.4,6.95777717]
[1673828494134,3.69997322,1544.3,1543.5,6.70858]
[1673828494423,3.69997322,1544.3,1543.6,1.5]
[1673828494645,3.69997322,1544.3,1543.6,6.47802]
[1673828494844,4.28560563,1543.5,1543.4,0.47891717]
[1673828495034,1.29788382,1543.3,1542.1,0.8995634]
[1673828495248,1.29788382,1543.3,1542.6,6.48247]
[1673828495249,0.6758,1542.7,1542.6,6.48247]
[1673828495460,0.6758,1542.7,1542.6,12.96503]
[1673828495893,0.67210368,1542.7,1542.6,12.96503]
[1673828496291,0.00010368,1542.7,1542.6,15.96503]
[1673828496506,1.29788382,1543.3,1542.7,1.5]
[1673828496748,4.28560563,1543.5,1542.9,1.5]
[1673828496973,4.28560563,1543.5,1543.0,19.44162]
[1673828497135,1.89205231,1544.0,1543.1,4.5]
[1673828497136,1.40605231,1544.0,1543.1,4.5]
[1673828497341,1.40605231,1544.0,1543.3,19.43796]
[1673828497720,1.40605231,1544.0,1543.5,25.91376]
[1673828498024,3.21407322,1544.3,1543.7,12.9557]
[1673828498382,3.21407322,1544.3,1543.9,1.5]
[1673828498618,3.21407322,1544.3,1543.9,7.97689]
[1673828498805,3.21407322,1544.3,1543.8,6.70734]
[1673828500626,3.21407322,1544.3,1543.9,1.5]
[1673828500966,3.21407322,1544.3,1544.0,13.1832]
[1673828501117,0.14157548,1544.3,1544.0,15.5302]
[1673828501327,0.4857,1545.0,1544.1,1.5]
[1673828501574,0.4857,1545.0,1544.3,12.95037]
[1673828501790,0.4857,1545.0,1544.2,6.47561]
[1673828501791,16.93082,1545.0,1544.0,6.7066]
[1673828501997,6.47378,1544.7,1544.0,0.23]
[1673828502226,9.97378,1544.7,1543.9,6.47687]
[1673828502589,6.47378,1544.7,1543.9,6.47687]
[1673828502852,3.5,1544.6,1543.7,6.47785]
[1673828503061,3.5,1544.6,1543.5,10.9374]
[1673828503062,0.4858,1544.5,1543.5,10.9374]
[1673828503275,6.47556,1544.3,1543.3,6.47933]
[1673828503428,9.96207,1544.2,1543.3,6.47933]
[1673828503639,0.4859,1544.2,1543.3,6.47933]
[1673828503885,6.96189,1544.2,1543.3,6.47933]
[1673828504112,10.46189,1544.2,1543.3,6.47933]
[1673828504273,0.95104194,1544.1,1543.5,1.5]
[1673828504482,0.486,1544.0,1543.5,7.97843]
[1673828504689,0.4859,1544.2,1543.5,7.97843]
[1673828505219,0.4859,1544.2,1543.8,1.5]
[1673828505487,0.4859,1544.3,1543.9,3.00718158]
[1673828505679,0.4858,1544.5,1544.0,3.2995108]
[1673828505998,0.4858,1544.6,1544.1,2.98621126]
[1673828506342,0.4858,1544.6,1544.3,7.97534]
[1673828506556,7.87811374,1545.1,1544.4,2.96943988]
[1673828506557,0.4857,1545.0,1544.4,2.96943988]
[1673828506711,0.4857,1545.0,1544.5,2.94848178]
[1673828506926,0.4857,1545.0,1544.6,2.94429098]
[1673828507127,0.48623762,1544.5,1544.4,12.94987]
[1673828507990,0.43623762,1544.5,1544.4,13.17987]
[1673828508393,7.62e-06,1544.5,1544.4,13.17987]
[1673828509250,7.62e-06,1544.5,1544.4,13.12987]
[1673828509455,7.62e-06,1544.5,1544.4,18.240391]